fUSD/lending_fUSD_20241028
["ID","MTS","AMOUNT","RATE_DAILY","PERIOD"]
[340950348,1730149841779,-151.0,0.00027,7]
[340950350,1730149841789,-151.0,0.00027,7]
[340950352,1730149841798,-151.0,0.00027,7]
[340950354,1730149841807,-151.0,0.00027,7]
[340950356,1730149841817,-151.0,0.00027,7]
[340950359,1730149841827,-222.546785,0.00027,7]
[340950361,1730149841836,-211.00905,0.00027,7]
[340950363,1730149841845,-869.487613,0.00027,7]
[340950365,1730149841855,-869.487613,0.00027,7]
[340950367,1730149841864,-151.0,0.00027,7]
[340950369,1730149841873,-151.0,0.00027,7]
[340950371,1730149841883,-151.0,0.00027,7]
[340950373,1730149841892,-500.0,0.00027,2]
[340950375,1730149841906,-151.0,0.00027,7]
[340950377,1730149841915,-151.0,0.00027,7]
[340950379,1730149841924,-250.0,0.00027397,2]
[340950381,1730149841933,-151.0,0.00027397,7]
[340950383,1730149841944,-151.0,0.00027397,7]
[340950385,1730149841953,-150.0,0.00027397,7]
[340950387,1730149841963,-1000.0,0.00027634,2]
[340950389,1730149841972,-168.79,0.00027728,2]
[340950391,1730149841981,-172.4,0.00028054,120]
[340950393,1730149841990,-1195.82,0.00028083,2]
[340950395,1730149842000,-168.79,0.00028746,2]
[340950397,1730149842009,-550.0,0.00029,2]
[340950399,1730149842019,-237.90594816,0.00029959,2]
[340950401,1730149842028,-1615.89320569,0.00029959,2]
[340950403,1730149842037,-668.55612593,0.00029959,2]
[340950405,1730149842046,-3346.60304537,0.00029959,2]
[340950407,1730149842055,-1485.4155384,0.0003,2]
[340950409,1730149842067,-195.21370004,0.0003,2]
[340950411,1730149842076,-1195.82,0.00030347,2]
[340950413,1730149842085,-1000.0,0.00030397,2]
[340950415,1730149842095,-3415.48,0.00030614,2]
[340950417,1730149842104,-2183.42015525,0.000315,30]
[340950419,1730149842114,-167.0,0.00032094,2]
[340950421,1730149842123,-1195.82,0.00032611,2]
[340950423,1730149842132,-167.59,0.00032727,2]
[340950425,1730149842142,-500.0,0.00032876,2]
[340950427,1730149842152,-167.0,0.00033154,2]
[340950429,1730149842162,-1000.0,0.0003316,2]
[340950431,1730149842171,-172.4,0.00033665,120]
[340950433,1730149842181,-167.0,0.00034213,2]
[340950435,1730149842190,-1195.82,0.00034875,2]
[340950437,1730149842199,-167.0,0.00035273,2]
[340950439,1730149842208,-151.0,0.00035455,7]
[340950441,1730149842218,-151.0,0.00035455,7]
[340950443,1730149842227,-151.0,0.00035455,7]
[340950445,1730149842237,-151.0,0.00035455,7]
[340950447,1730149842246,-151.0,0.00035455,7]
[340950449,1730149842255,-261.410672,0.00035455,7]
[340950451,1730149842264,-151.0,0.00035455,7]
[340950453,1730149842274,-151.0,0.00035455,7]
[340950455,1730149842284,-240.630776,0.00035455,7]
[340950457,1730149842294,-151.0,0.00035455,7]
[340950459,1730149842304,-869.487613,0.00035455,7]
[340950461,1730149842315,-869.487613,0.00035455,7]
[340950463,1730149842325,-151.0,0.00035455,7]
[340950465,1730149842336,-151.0,0.00035455,7]
[340950467,1730149842346,-151.0,0.00035455,7]
[340950469,1730149842356,-151.0,0.00035455,7]
[340950471,1730149842366,-151.0,0.00035455,7]
[340950473,1730149842380,-151.0,0.00035455,7]
[340950476,1730149842389,-2909.02,0.00035455,2]
[340950478,1730149842399,-22256.59,0.00035455,2]
[340950480,1730149842409,-1000.0,0.00035616,2]
[340950482,1730149842419,-162.12,0.00035616,2]
[340950483,1730149842429,-404.26431377,0.00035941,7]
[340950486,1730149842439,-5802.50708378,0.00035941,7]
[340950488,1730149842451,-262.502336,0.00036261,7]
[340950490,1730149842461,-151.0,0.00036261,7]
[340950492,1730149842471,-153.417951,0.00036261,7]
[340950493,1730149842481,-151.0,0.00036261,7]
[340950495,1730149842490,-151.0,0.00036261,7]
[340950497,1730149842499,-151.0,0.00036261,7]
[340950500,1730149842510,-151.0,0.00036261,7]
[340950502,1730149842521,-151.0,0.00036261,7]
[340950504,1730149842532,-151.0,0.00036261,7]
[340950506,1730149842543,-154.944452,0.00036261,7]
[340950507,1730149842554,-151.0,0.00036261,7]
[340950508,1730149842564,-151.0,0.00036261,7]
[340950509,1730149842574,-151.0,0.00036261,7]
[340950510,1730149842584,-167.0,0.00036332,2]
[340950511,1730149842593,-225.29,0.00037072,2]
[340950512,1730149842603,-587.23,0.000371,30]
[340950514,1730149842612,-1195.82,0.00037139,2]
[340950516,1730149842621,-240.021,0.00037287,2]
[340950518,1730149842630,-167.0,0.00037391,2]
[340950519,1730149842639,-18065.8046188,0.000374,2]
[340950521,1730149842650,-307.33,0.000375,14]
[340950523,1730149842665,-222.053946,0.00037769,7]
[340950525,1730149842674,-5143.887485,0.000382,2]
[340950526,1730149842683,-150.01,0.00038355,2]
[340950527,1730149842692,-1157.83426162,0.00038355,2]
[340950528,1730149842701,-500.7480407,0.00038356,3]
[340950529,1730149842710,-500.0,0.00038356,2]
[340950530,1730149842719,-500.0,0.00038356,2]
[340950531,1730149842729,-500.0,0.00038356,2]
[340950532,1730149842738,-1500.0,0.00038356,2]
[340950533,1730149842748,-500.0,0.00038356,3]
[340950534,1730149842758,-500.0,0.00038356,3]
[340950535,1730149842767,-500.0,0.00038356,3]
[340950536,1730149842776,-510.66034919,0.00038356,3]
[340950537,1730149842786,-513.41109339,0.00038356,3]
[340950538,1730149842795,-329.22001062,0.00038356,3]
[340950539,1730149842805,-500.0,0.00038356,3]
[340950540,1730149842814,-500.0,0.00038356,3]
[340950541,1730149842824,-500.0,0.00038356,3]
[340950542,1730149842834,-151.0,0.00038356,7]
[340950543,1730149842843,-151.0,0.00038356,7]
[340950544,1730149842854,-511.44432749,0.00038356,3]
[340950545,1730149842864,-449.25009441,0.00038356,3]
[340950546,1730149842873,-151.0,0.00038356,7]
[340950547,1730149842882,-500.0,0.00038356,3]
[340950548,1730149842892,-20000.0,0.00038356,2]
[340950549,1730149842901,-500.0,0.00038356,3]
[340950550,1730149842911,-500.0,0.00038356,3]
[340950551,1730149842921,-500.0,0.00038356,3]
[340950552,1730149842930,-500.0,0.00038356,3]
[340950553,1730149842940,-500.00485332,0.00038356,3]
[340950554,1730149842949,-500.0,0.00038356,3]
[340950555,1730149842958,-465.71729737,0.00038356,3]
[340950556,1730149842968,-500.0,0.00038356,3]
[340950557,1730149842977,-500.0,0.00038356,3]
[340950558,1730149842986,-500.0,0.00038356,3]
[340950559,1730149842995,-500.0,0.00038356,3]
[340950560,1730149843004,-500.0,0.00038356,2]
[340950561,1730149843014,-500.0,0.00038356,3]
[340950562,1730149843023,-500.0,0.00038356,3]
[340950563,1730149843032,-500.0,0.00038356,3]
[340950564,1730149843042,-278.01072505,0.00038356,3]
[340950565,1730149843051,-500.0,0.00038356,3]
[340950566,1730149843060,-512.32516389,0.00038356,3]
[340950567,1730149843070,-531.65343086,0.00038356,3]
[340950568,1730149843079,-500.0,0.00038356,3]
[340950569,1730149843088,-500.0,0.00038356,3]
[340950570,1730149843098,-541.12124042,0.00038356,3]
[340950571,1730149843107,-542.99965237,0.00038356,3]
[340950572,1730149843116,-500.0,0.00038356,3]
[340950573,1730149843125,-500.0,0.00038356,3]
[340950574,1730149843135,-500.0,0.00038356,3]
[340950576,1730149843144,-500.0,0.00038356,3]
[340950578,1730149843154,-500.0,0.00038356,3]
[340950580,1730149843164,-151.0,0.00038356,7]
[340950582,1730149843173,-151.0,0.00038356,7]
[340950583,1730149843182,-151.0,0.00038356,7]
[340950584,1730149843192,-500.0,0.00038356,3]
[340950585,1730149843201,-500.0,0.00038356,3]
[340950586,1730149843211,-500.0,0.00038356,2]
[340950588,1730149843220,-424.75369665,0.00038356,3]
[340950590,1730149843229,-507.88301283,0.00038356,3]
[340950592,1730149843239,-500.0,0.00038356,3]
[340950593,1730149843249,-518.80793008,0.00038356,3]
[340950596,1730149843259,-500.0,0.00038356,3]
[340950599,1730149843268,-500.0,0.00038356,3]
[340950601,1730149843277,-577.2874655,0.00038356,3]
[340950603,1730149843287,-500.0,0.00038356,3]
[340950604,1730149843296,-500.0,0.00038356,3]
[340950605,1730149843306,-500.0,0.00038356,3]
[340950606,1730149843315,-500.0,0.00038356,3]
[340950607,1730149843325,-500.0,0.00038356,3]
[340950609,1730149843334,-500.0,0.00038356,3]
[340950610,1730149843344,-256.7014052,0.00038356,3]
[340950611,1730149843353,-578.64,0.00038356,3]
[340950612,1730149843363,-509.04003879,0.00038356,3]
[340950613,1730149843374,-500.0,0.00038356,2]
[340950614,1730149843383,-500.0,0.00038356,2]
[340950615,1730149843393,-500.0,0.00038356,2]
[340950616,1730149843403,-500.0,0.00038356,2]
[340950617,1730149843413,-500.0,0.00038356,2]
[340950618,1730149843423,-500.0,0.00038356,2]
[340950619,1730149843432,-500.0,0.00038356,2]
[340950620,1730149843442,-500.0,0.00038356,2]
[340950621,1730149843452,-500.0,0.00038356,2]
[340950622,1730149843462,-500.0,0.00038356,2]
[340950623,1730149843472,-500.0,0.00038356,2]
[340950624,1730149843482,-500.0,0.00038356,2]
[340950625,1730149843492,-500.0,0.00038356,2]
[340950626,1730149843502,-500.0,0.00038356,2]
[340950627,1730149843511,-500.0,0.00038356,2]
[340950628,1730149843521,-504.92990091,0.00038356,2]
[340950629,1730149843530,-151.0,0.00038356,7]
[340950630,1730149843540,-500.0,0.00038356,3]
[340950631,1730149843550,-151.0,0.00038356,7]
[340950632,1730149843559,-151.0,0.00038356,7]
[340950633,1730149843569,-151.0,0.00038356,7]
[340950634,1730149843578,-1318.2,0.00038356,3]
[340950635,1730149843587,-500.0,0.00038356,3]
[340950636,1730149843597,-500.0,0.00038356,3]
[340950637,1730149843607,-639.36,0.00038356,3]
[340950638,1730149843616,-500.0,0.00038356,3]
[340950639,1730149843626,-500.0,0.00038356,3]
[340950640,1730149843636,-500.0,0.00038356,3]
[340950641,1730149843645,-500.0,0.00038356,3]
[340950642,1730149843655,-500.0,0.00038356,3]
[340950643,1730149843665,-500.0,0.00038356,3]
[340950644,1730149843674,-500.0,0.00038356,3]
[340950645,1730149843684,-800.51,0.00038356,3]
[340950646,1730149843694,-500.0,0.00038356,3]
[340950647,1730149843704,-500.0,0.00038356,3]
[340950648,1730149843713,-500.0,0.00038356,3]
[340950649,1730149843723,-500.0,0.00038356,3]
[340950651,1730149843733,-500.0,0.00038356,3]
[340950652,1730149843743,-500.0,0.00038356,3]
[340950653,1730149843753,-500.0,0.00038356,3]
[340950654,1730149843763,-500.0,0.00038356,3]
[340950655,1730149843773,-305.18743419,0.00038356,3]
[340950656,1730149843783,-500.0,0.00038356,3]
[340950657,1730149843793,-500.0,0.00038356,3]
[340950658,1730149843803,-183.14406795,0.00038356,3]
[340950659,1730149843813,-500.0,0.00038356,3]
[340950660,1730149843823,-500.0,0.00038356,3]
[340950661,1730149843833,-500.0,0.00038356,3]
[340950662,1730149843844,-500.0,0.00038356,3]
[340950663,1730149843854,-500.0,0.00038356,3]
[340950664,1730149843864,-827.35,0.00038356,3]
[340950665,1730149843873,-151.0,0.00038356,7]
[340950666,1730149843883,-500.0,0.00038356,3]
[340950667,1730149843893,-151.0,0.00038356,7]
[340950668,1730149843903,-500.0,0.00038356,3]
[340950669,1730149843913,-151.0,0.00038356,7]
[340950670,1730149843922,-151.0,0.00038356,7]
[340950671,1730149843932,-500.0,0.00038356,3]
[340950672,1730149843941,-442.41193107,0.00038356,3]
[340950673,1730149843951,-500.0,0.00038356,3]
[340950674,1730149843960,-500.0,0.00038356,3]
[340950675,1730149843970,-592.08409975,0.00038356,3]
[340950676,1730149843979,-538.23,0.00038356,3]
[340950677,1730149843989,-1066.39,0.00038356,3]
[340950678,1730149843998,-500.0,0.00038356,3]
[340950679,1730149844008,-500.0,0.00038356,3]
[340950680,1730149844018,-543.78,0.00038356,3]
[340950681,1730149844028,-500.47,0.00038356,3]
[340950682,1730149844038,-151.0,0.00038356,7]
[340950683,1730149844048,-538.8,0.00038356,3]
[340950684,1730149844058,-151.0,0.00038356,7]
[340950685,1730149844067,-500.0,0.00038356,3]
[340950686,1730149844079,-151.0,0.00038356,7]
[340950687,1730149844088,-151.0,0.00038356,7]
[340950688,1730149844098,-2857.05,0.00038356,3]
[340950689,1730149844109,-448.59389845,0.00038356,3]
[340950690,1730149844119,-500.0,0.00038356,3]
[340950691,1730149844131,-500.0,0.00038356,3]
[340950692,1730149844140,-500.0,0.00038356,3]
[340950693,1730149844150,-869.487613,0.00038356,7]
[340950694,1730149844162,-869.487613,0.00038356,7]
[340950695,1730149844172,-335.13280982,0.00038356,3]
[340950696,1730149844182,-869.487613,0.00038356,7]
[340950697,1730149844191,-500.0,0.00038356,3]
[340950698,1730149844201,-869.487613,0.00038356,7]
[340950699,1730149844211,-500.0,0.00038356,3]
[340950700,1730149844220,-589.43,0.00038356,3]
[340950701,1730149844231,-500.0,0.00038356,3]
[340950702,1730149844240,-500.0,0.00038356,3]
[340950703,1730149844250,-500.0,0.00038356,3]
[340950704,1730149844259,-500.0,0.00038356,3]
[340950705,1730149844269,-869.487613,0.00038356,7]
[340950706,1730149844279,-869.487613,0.00038356,7]
[340950707,1730149844289,-631.20819813,0.00038356,3]
[340950708,1730149844299,-869.487613,0.00038356,7]
[340950709,1730149844309,-500.0,0.00038356,3]
[340950710,1730149844319,-869.487613,0.00038356,7]
[340950711,1730149844329,-270.79970236,0.00038356,3]
[340950712,1730149844339,-500.0,0.00038356,3]
[340950713,1730149844349,-500.0,0.00038356,3]
[340950714,1730149844359,-500.0,0.00038356,3]
[340950715,1730149844371,-500.0,0.00038356,3]
[340950716,1730149844382,-594.45853958,0.00038356,3]
[340950717,1730149844392,-500.0,0.00038356,3]
[340950718,1730149844403,-500.0,0.00038356,3]
[340950719,1730149844415,-151.0,0.00038356,7]
[340950720,1730149844424,-151.0,0.00038356,7]
[340950721,1730149844435,-632.131212,0.00038356,3]
[340950722,1730149844445,-151.0,0.00038356,7]
[340950723,1730149844457,-500.0,0.00038356,3]
[340950724,1730149844468,-151.0,0.00038356,7]
[340950725,1730149844477,-500.0,0.00038356,3]
[340950726,1730149844487,-274.391234,0.00038356,7]
[340950727,1730149844497,-500.0,0.00038356,3]
[340950728,1730149844508,-500.0,0.00038356,3]
[340950729,1730149844518,-244.969492,0.00038356,7]
[340950730,1730149844528,-166.51192871,0.00038356,3]
[340950731,1730149844537,-500.0,0.00038356,3]
[340950732,1730149844547,-500.0,0.00038356,3]
[340950733,1730149844557,-500.0,0.00038356,3]
[340950734,1730149844566,-735.49,0.00038356,3]
[340950735,1730149844712,-500.0,0.00038356,3]
[340950736,1730149844752,-500.0,0.00038356,3]
[340950737,1730149844764,-500.0,0.00038356,3]
[340950738,1730149844774,-1120.31,0.00038356,3]
[340950739,1730149844784,-500.0,0.00038356,3]
[340950740,1730149844795,-500.0,0.00038356,3]
[340950741,1730149844804,-529.59,0.00038356,3]
[340950742,1730149844814,-601.88,0.00038356,3]
[340950743,1730149844823,-500.0,0.00038356,3]
[340950744,1730149844832,-151.0,0.00038356,7]
[340950745,1730149844842,-538.12,0.00038356,3]
[340950746,1730149844852,-249.953124,0.00038356,7]
[340950747,1730149844861,-500.0,0.00038356,2]
[340950748,1730149844871,-500.0,0.00038356,3]
[340950749,1730149844881,-450.80235102,0.00038356,3]
[340950750,1730149844890,-500.0,0.00038356,3]
[340950751,1730149844899,-520.39855552,0.00038356,3]
[340950752,1730149844911,-496041.5,0.00038356,2]
[340950753,1730149844921,-35693.6310051,0.00038372,2]
[340950754,1730149844930,-6730.6941861,0.00038372,2]
[340950755,1730149844940,-5530.719082,0.00038372,2]
[340950756,1730149844949,-182.482684,0.00038372,14]
[340950757,1730149844959,-151.0,0.00038372,14]
[340950758,1730149844968,-267.5187,0.00038372,14]
[340950759,1730149844978,-151.0,0.00038372,14]
[340950760,1730149844987,-869.487613,0.00038372,14]
[340950761,1730149844997,-869.487613,0.00038372,14]
[340950762,1730149845007,-151.0,0.00038372,14]
[340950763,1730149845018,-500.0,0.00038373,5]
[340950764,1730149845028,-150.0,0.00038476,2]
[340950765,1730149845038,-202.558,0.00038476,2]
[340950766,1730149845047,-203.354,0.00038476,2]
[340950767,1730149845056,-395.81,0.00038476,2]
[340950768,1730149845066,-814.0,0.00038476,2]
[340950769,1730149845077,-1980.0,0.00038476,2]
[340950770,1730149845087,-1264.0,0.00038476,2]
[340950771,1730149845097,-2205.0,0.00038476,2]
[340950772,1730149845107,-630.8177137,0.0003863,2]
[340950773,1730149845116,-153.41865269,0.0003863,2]
[340950774,1730149845125,-500.0,0.0003863,2]
[340950775,1730149845135,-500.0,0.0003863,3]
[340950776,1730149845145,-500.0,0.0003863,3]
[340950777,1730149845156,-500.0,0.0003863,3]
[340950778,1730149845166,-500.0,0.0003863,3]
[340950779,1730149845176,-500.0,0.0003863,3]
[340950780,1730149845185,-500.0,0.0003863,3]
[340950781,1730149845195,-500.0,0.0003863,3]
[340950782,1730149845204,-20000.0,0.0003863,2]
[340950783,1730149845214,-500.0,0.0003863,3]
[340950784,1730149845224,-500.0,0.0003863,3]
[340950785,1730149845234,-500.0,0.0003863,3]
[340950786,1730149845243,-500.0,0.0003863,3]
[340950787,1730149845252,-500.0,0.0003863,3]
[340950788,1730149845262,-500.0,0.0003863,3]
[340950789,1730149845271,-500.0,0.0003863,3]
[340950790,1730149845280,-495.85036781,0.0003863,3]
[340950791,1730149845290,-500.0,0.0003863,3]
[340950792,1730149845300,-500.0,0.0003863,2]
[340950793,1730149845309,-500.0,0.0003863,3]
[340950794,1730149845319,-500.0,0.0003863,3]
[340950795,1730149845328,-218.75104141,0.0003863,3]
[340950796,1730149845338,-531.91419815,0.0003863,3]
[340950797,1730149845349,-500.0,0.0003863,3]
[340950798,1730149845360,-500.0,0.0003863,3]
[340950799,1730149845370,-500.0,0.0003863,3]
[340950800,1730149845384,-567.48526481,0.0003863,3]
[340950801,1730149845394,-571.89864327,0.0003863,3]
[340950802,1730149845404,-500.0,0.0003863,3]
[340950803,1730149845415,-500.0,0.0003863,3]
[340950804,1730149845427,-500.0,0.0003863,2]
[340950805,1730149845436,-446.84728036,0.0003863,3]
[340950806,1730149845447,-577.38412491,0.0003863,3]
[340950807,1730149845459,-500.0,0.0003863,3]
[340950808,1730149845470,-500.0,0.0003863,3]
[340950809,1730149845481,-500.0,0.0003863,3]
[340950810,1730149845491,-500.0,0.0003863,3]
[340950811,1730149845500,-500.0,0.0003863,3]
[340950812,1730149845511,-500.0,0.0003863,3]
[340950813,1730149845522,-500.0,0.0003863,3]
[340950814,1730149845532,-578.64,0.0003863,3]
[340950815,1730149845542,-267.40251445,0.0003863,3]
[340950816,1730149845552,-276.059968,0.0003863,14]
[340950817,1730149845562,-1318.2,0.0003863,3]
[340950818,1730149845572,-500.0,0.0003863,3]
[340950819,1730149845581,-500.0,0.0003863,3]
[340950820,1730149845591,-639.36,0.0003863,3]
[340950821,1730149845601,-500.0,0.0003863,3]
[340950822,1730149845611,-500.0,0.0003863,3]
[340950823,1730149845621,-500.0,0.0003863,3]
[340950824,1730149845631,-433.1063093,0.0003863,3]
[340950825,1730149845642,-500.0,0.0003863,3]
[340950826,1730149845652,-500.0,0.0003863,3]
[340950827,1730149845666,-500.0,0.0003863,3]
[340950828,1730149845676,-800.51,0.0003863,3]
[340950829,1730149845687,-500.0,0.0003863,3]
[340950830,1730149845697,-500.0,0.0003863,3]
[340950831,1730149845707,-202.51180602,0.0003863,3]
[340950832,1730149845717,-500.0,0.0003863,3]
[340950833,1730149845727,-500.0,0.0003863,3]
[340950834,1730149845738,-500.0,0.0003863,3]
[340950835,1730149845748,-500.0,0.0003863,3]
[340950836,1730149845759,-500.0,0.0003863,3]
[340950837,1730149845769,-500.0,0.0003863,3]
[340950838,1730149845779,-500.0,0.0003863,3]
[340950839,1730149845789,-500.0,0.0003863,3]
[340950840,1730149845800,-599.28056764,0.0003863,3]
[340950841,1730149845809,-379.21202766,0.0003863,3]
[340950842,1730149845819,-500.0,0.0003863,3]
[340950843,1730149845830,-500.0,0.0003863,3]
[340950844,1730149845840,-827.35,0.0003863,3]
[340950845,1730149845850,-500.0,0.0003863,3]
[340950846,1730149845860,-500.0,0.0003863,3]
[340950847,1730149845870,-500.0,0.0003863,3]
[340950848,1730149845880,-500.0,0.0003863,3]
[340950849,1730149845890,-500.0,0.0003863,3]
[340950850,1730149845900,-538.23,0.0003863,3]
[340950851,1730149845912,-1066.39,0.0003863,3]
[340950852,1730149845922,-500.0,0.0003863,3]
[340950853,1730149845931,-500.0,0.0003863,3]
[340950854,1730149845940,-538.8,0.0003863,3]
[340950855,1730149845950,-500.0,0.0003863,3]
[340950856,1730149845960,-2857.05,0.0003863,3]
[340950857,1730149845969,-151.0,0.0003863,14]
[340950858,1730149845979,-151.0,0.0003863,14]
[340950859,1730149845989,-500.0,0.0003863,3]
[340950860,1730149845999,-500.0,0.0003863,3]
[340950861,1730149846010,-500.0,0.0003863,3]
[340950862,1730149846020,-500.0,0.0003863,3]
[340950863,1730149846031,-869.487613,0.0003863,14]
[340950864,1730149846041,-869.487613,0.0003863,14]
[340950865,1730149846051,-500.0,0.0003863,3]
[340950866,1730149846061,-504.15234141,0.0003863,3]
[340950867,1730149846072,-500.0,0.0003863,3]
[340950868,1730149846082,-500.0,0.0003863,3]
[340950869,1730149846093,-500.0,0.0003863,3]
[340950870,1730149846103,-869.487613,0.0003863,14]
[340950872,1730149846113,-500.0,0.0003863,3]
[340950873,1730149846124,-500.0,0.0003863,3]
[340950874,1730149846134,-869.487613,0.0003863,14]
[340950875,1730149846145,-500.0,0.0003863,3]
[340950876,1730149846157,-500.0,0.0003863,3]
[340950877,1730149846167,-500.0,0.0003863,3]
[340950878,1730149846177,-500.0,0.0003863,3]
[340950879,1730149846188,-500.0,0.0003863,3]
[340950880,1730149846198,-151.0,0.0003863,14]
[340950881,1730149846208,-151.0,0.0003863,14]
[340950882,1730149846218,-500.0,0.0003863,3]
[340950883,1730149846228,-500.0,0.0003863,3]
[340950884,1730149846238,-522.66270575,0.0003863,3]
[340950885,1730149846248,-522.70190228,0.0003863,3]
[340950886,1730149846258,-500.0,0.0003863,3]
[340950887,1730149846268,-500.0,0.0003863,3]
[340950888,1730149846278,-735.49,0.0003863,3]
[340950889,1730149846288,-500.0,0.0003863,3]
[340950890,1730149846298,-500.0,0.0003863,3]
[340950891,1730149846309,-500.0,0.0003863,3]
[340950892,1730149846319,-1120.31,0.0003863,3]
[340950893,1730149846328,-500.0,0.0003863,3]
[340950894,1730149846338,-500.0,0.0003863,3]
[340950895,1730149846347,-529.59,0.0003863,3]
[340950896,1730149846357,-601.88,0.0003863,3]
[340950897,1730149846367,-521.25017613,0.0003863,3]
[340950899,1730149846380,-538.12,0.0003863,3]
[340950900,1730149846391,-500.0,0.0003863,2]
[340950901,1730149846401,-500.0,0.0003863,3]
[340950902,1730149846414,-500.0,0.0003863,3]
[340950903,1730149846423,-500.0,0.00038673,5]
[340950904,1730149846433,-587.23,0.000388,30]
[340950905,1730149846443,-500.0,0.00038904,2]
[340950906,1730149846455,-399.21380805,0.00038904,3]
[340950907,1730149846465,-500.0,0.00038904,3]
[340950908,1730149846476,-500.0,0.00038904,3]
[340950909,1730149846485,-500.0,0.00038904,3]
[340950910,1730149846495,-500.0,0.00038904,3]
[340950911,1730149846505,-500.0,0.00038904,3]
[340950912,1730149846515,-208.60378584,0.00038904,3]
[340950913,1730149846524,-20000.0,0.00038904,2]
[340950914,1730149846534,-500.0,0.00038904,3]
[340950915,1730149846544,-500.0,0.00038904,3]
[340950916,1730149846553,-385.92978146,0.00038904,3]
[340950917,1730149846563,-500.71744841,0.00038904,3]
[340950918,1730149846573,-500.0,0.00038904,3]
[340950919,1730149846582,-500.0,0.00038904,3]
[340950920,1730149846592,-602.13412581,0.00038904,3]
[340950921,1730149846602,-500.0,0.00038904,3]
[340950922,1730149846611,-500.0,0.00038904,2]
[340950923,1730149846621,-500.0,0.00038904,3]
[340950924,1730149846631,-500.0,0.00038904,3]
[340950925,1730149846640,-593.76072948,0.00038904,3]
[340950926,1730149846651,-152.84279657,0.00038904,3]
[340950927,1730149846662,-500.0,0.00038904,3]
[340950928,1730149846672,-500.0,0.00038904,3]
[340950929,1730149846681,-500.0,0.00038904,3]
[340950930,1730149846691,-500.0,0.00038904,2]
[340950931,1730149846701,-500.0,0.00038904,3]
[340950932,1730149846710,-500.0,0.00038904,3]
[340950933,1730149846721,-500.0,0.00038904,3]
[340950934,1730149846732,-500.0,0.00038904,3]
[340950935,1730149846742,-518.0971169,0.00038904,3]
[340950936,1730149846787,-500.0,0.00038904,3]
[340950937,1730149846797,-500.0,0.00038904,3]
[340950938,1730149846807,-578.64,0.00038904,3]
[340950939,1730149846818,-1318.2,0.00038904,3]
[340950940,1730149846827,-500.0,0.00038904,3]
[340950941,1730149846837,-500.0,0.00038904,3]
[340950942,1730149846846,-639.36,0.00038904,3]
[340950943,1730149846855,-500.0,0.00038904,3]
[340950944,1730149846864,-500.0,0.00038904,3]
[340950945,1730149846874,-500.0,0.00038904,3]
[340950946,1730149846883,-500.0,0.00038904,3]
[340950947,1730149846894,-593.34794704,0.00038904,3]
[340950948,1730149846903,-500.0,0.00038904,3]
[340950949,1730149846917,-800.51,0.00038904,3]
[340950950,1730149846926,-500.0,0.00038904,3]